[Event "Titled Tuesday Blitz November 07 Early 2023"]
[White "CrazyAdvenTures"]
[Black "Kukhmazov, Arsen"]
[BlackFideId "24108260"]
[WhiteElo "2808"]
[BlackElo "2918"]
[Result "1-0"]
[Round "4"]
[TimeControl "180+1"]
[Date "2023.11.07"]
[WhiteClock "0:00:56"]
[BlackClock "0:00:01"]
[Board "14"]

1. e4 {[%clk 0:03:00]}  c6 {[%clk 0:03:00]} 2. Nf3 {[%clk 0:02:59]}  d5 {[%clk 0:03:00]} 3. Nc3 {[%clk 0:03:00]}  Bg4 {[%clk 0:03:01]} 4. h3 {[%clk 0:02:59]}  Bh5 {[%clk 0:03:01]} 5. exd5 {[%clk 0:02:54]}  cxd5 {[%clk 0:03:02]} 6. g4 {[%clk 0:02:53]}  Bg6 {[%clk 0:03:02]} 7. Ne5 {[%clk 0:02:48]}  Nc6 {[%clk 0:03:03]} 8. d4 {[%clk 0:02:42]}  e6 {[%clk 0:03:03]} 9. Bb5 {[%clk 0:02:40]}  Rc8 {[%clk 0:03:03]} 10. h4 {[%clk 0:02:39]}  f6 {[%clk 0:03:03]} 11. Bxc6+ {[%clk 0:02:29]}  bxc6 {[%clk 0:03:03]} 12. Nxg6 {[%clk 0:02:30]}  hxg6 {[%clk 0:03:03]} 13. Qd3 {[%clk 0:02:30]}  Kf7 {[%clk 0:03:01]} 14. Bd2 {[%clk 0:02:12]}  c5 {[%clk 0:03:00]} 15. dxc5 {[%clk 0:02:11]}  Rxc5 {[%clk 0:03:01]} 16. O-O-O {[%clk 0:02:07]}  Rc4 {[%clk 0:02:51]} 17. h5 {[%clk 0:02:04]}  gxh5 {[%clk 0:02:51]} 18. gxh5 {[%clk 0:02:05]}  Ne7 {[%clk 0:02:48]} 19. Rdg1 {[%clk 0:01:32]}  Nf5 {[%clk 0:02:41]} 20. Kb1 {[%clk 0:01:23]}  Bc5 {[%clk 0:02:02]} 21. Rg2 {[%clk 0:01:07]}  Bd4 {[%clk 0:01:37]} 22. Ne2 {[%clk 0:01:02]}  Be5 {[%clk 0:01:37]} 23. f4 {[%clk 0:01:01]}  Bc7 {[%clk 0:01:34]} 24. b3 {[%clk 0:00:58]}  Re4 {[%clk 0:01:21]} 25. Ng3 {[%clk 0:00:56]}  Nxg3 {[%clk 0:00:32]} 26. Qxg3 {[%clk 0:00:57]}  Qf8 {[%clk 0:00:14]} 27. Qg6+ {[%clk 0:00:54]}  Ke7 {[%clk 0:00:14]} 28. Qxg7+ {[%clk 0:00:54]}  Qxg7 {[%clk 0:00:11]} 29. Rxg7+ {[%clk 0:00:55]}  Kd8 {[%clk 0:00:12]} 30. h6 {[%clk 0:00:55]}  Bxf4 {[%clk 0:00:04]} 31. Bxf4 {[%clk 0:00:55]}  Rxf4 {[%clk 0:00:01]} 32. h7 {[%clk 0:00:56]} 1-0


[Site "https://www.chess.com"]

[Event "Titled Tuesday Blitz November 07 Early 2023"]
[White "Aravindh, Chithambaram VR."]
[Black "Sokolovsky, Yahli"]
[WhiteFideId "5072786"]
[BlackFideId "2820242"]
[WhiteElo "2917"]
[BlackElo "2804"]
[Result "1-0"]
[Round "4"]
[TimeControl "180+1"]
[Date "2023.11.07"]
[WhiteClock "0:00:05"]
[BlackClock "0:00:23"]
[Board "15"]

1. b3 {[%clk 0:03:00]}  Nf6 {[%clk 0:02:56]} 2. Bb2 {[%clk 0:03:01]}  g6 {[%clk 0:02:57]} 3. Nf3 {[%clk 0:03:01]}  Bg7 {[%clk 0:02:57]} 4. e3 {[%clk 0:03:02]}  O-O {[%clk 0:02:57]} 5. Be2 {[%clk 0:03:02]}  c5 {[%clk 0:02:52]} 6. c4 {[%clk 0:02:58]}  d6 {[%clk 0:02:48]} 7. O-O {[%clk 0:02:56]}  Nc6 {[%clk 0:02:45]} 8. d4 {[%clk 0:02:55]}  cxd4 {[%clk 0:02:46]} 9. Nxd4 {[%clk 0:02:54]}  Nxd4 {[%clk 0:02:46]} 10. Bxd4 {[%clk 0:02:53]}  b6 {[%clk 0:02:39]} 11. Nd2 {[%clk 0:02:30]}  Bb7 {[%clk 0:02:39]} 12. Bf3 {[%clk 0:02:28]}  Qd7 {[%clk 0:02:36]} 13. Rc1 {[%clk 0:02:24]}  Rac8 {[%clk 0:02:34]} 14. Qe2 {[%clk 0:02:22]}  e5 {[%clk 0:02:18]} 15. Bxb7 {[%clk 0:02:22]}  Qxb7 {[%clk 0:02:19]} 16. Bb2 {[%clk 0:02:20]}  Rfe8 {[%clk 0:02:06]} 17. Rfd1 {[%clk 0:01:55]}  d5 {[%clk 0:02:06]} 18. cxd5 {[%clk 0:01:55]}  Nxd5 {[%clk 0:02:05]} 19. Rxc8 {[%clk 0:01:53]}  Qxc8 {[%clk 0:01:47]} 20. Nc4 {[%clk 0:01:51]}  Qe6 {[%clk 0:01:47]} 21. e4 {[%clk 0:01:21]}  Nf4 {[%clk 0:01:40]} 22. Qd2 {[%clk 0:01:21]}  Bf6 {[%clk 0:01:21]} 23. h3 {[%clk 0:00:18]}  b5 {[%clk 0:01:13]} 24. Ne3 {[%clk 0:00:17]}  Rd8 {[%clk 0:01:14]} 25. Nd5 {[%clk 0:00:17]}  Kg7 {[%clk 0:01:08]} 26. Nxf4 {[%clk 0:00:14]}  Qa6 {[%clk 0:00:28]} 27. Nd5 {[%clk 0:00:13]}  Qxa2 {[%clk 0:00:29]} 28. Bxe5 {[%clk 0:00:07]}  Rxd5 {[%clk 0:00:18]} 29. Bxf6+ {[%clk 0:00:05]}  Kxf6 {[%clk 0:00:18]} 30. exd5 {[%clk 0:00:03]}  Qa3 {[%clk 0:00:19]} 31. d6 {[%clk 0:00:03]}  Qa5 {[%clk 0:00:18]} 32. d7 {[%clk 0:00:03]}  Qd8 {[%clk 0:00:19]} 33. Qd6+ {[%clk 0:00:03]}  Kg7 {[%clk 0:00:20]} 34. Qd4+ {[%clk 0:00:04]}  Kf8 {[%clk 0:00:20]} 35. Qh8+ {[%clk 0:00:03]}  Ke7 {[%clk 0:00:21]} 36. Re1+ {[%clk 0:00:04]}  Kxd7 {[%clk 0:00:22]} 37. Rd1+ {[%clk 0:00:04]}  Kc6 {[%clk 0:00:23]} 38. Qxd8 {[%clk 0:00:05]}  Kc5 {[%clk 0:00:23]} 39. Qd6# {[%clk 0:00:05]} 1-0


[Site "https://www.chess.com"]

[Event "Titled Tuesday Blitz November 07 Early 2023"]
[White "Talibov, Shiroghlan"]
[Black "Akhmedinov, Satbek"]
[WhiteFideId "13429078"]
[BlackFideId "13714287"]
[WhiteElo "2893"]
[BlackElo "2716"]
[Result "1-0"]
[Round "4"]
[TimeControl "180+1"]
[Date "2023.11.07"]
[WhiteClock "0:00:08"]
[BlackClock "0:00:25"]
[Board "19"]

1. d4 {[%clk 0:03:00]}  Nf6 {[%clk 0:03:00]} 2. c4 {[%clk 0:03:00]}  e6 {[%clk 0:03:00]} 3. Nf3 {[%clk 0:02:59]}  d5 {[%clk 0:03:00]} 4. Nc3 {[%clk 0:02:57]}  Be7 {[%clk 0:03:00]} 5. Bf4 {[%clk 0:02:57]}  O-O {[%clk 0:03:00]} 6. e3 {[%clk 0:02:57]}  c5 {[%clk 0:03:01]} 7. dxc5 {[%clk 0:02:47]}  Bxc5 {[%clk 0:03:02]} 8. a3 {[%clk 0:02:42]}  Nc6 {[%clk 0:03:01]} 9. Be2 {[%clk 0:02:30]}  dxc4 {[%clk 0:02:55]} 10. Bxc4 {[%clk 0:02:27]}  a6 {[%clk 0:02:50]} 11. O-O {[%clk 0:01:57]}  b5 {[%clk 0:02:49]} 12. Bd3 {[%clk 0:01:57]}  Bb7 {[%clk 0:02:39]} 13. Ne4 {[%clk 0:01:56]}  Be7 {[%clk 0:02:40]} 14. Rc1 {[%clk 0:01:53]}  Qb6 {[%clk 0:02:12]} 15. Nfg5 {[%clk 0:01:39]}  h6 {[%clk 0:02:08]} 16. Nxf6+ {[%clk 0:01:37]}  Bxf6 {[%clk 0:02:08]} 17. Nh7 {[%clk 0:01:38]}  Bxb2 {[%clk 0:02:05]} 18. Rb1 {[%clk 0:01:32]}  Bxa3 {[%clk 0:02:04]} 19. Nf6+ {[%clk 0:00:41]}  gxf6 {[%clk 0:01:22]} 20. Qg4+ {[%clk 0:00:18]}  Kh8 {[%clk 0:01:22]} 21. Qh5 {[%clk 0:00:18]}  f5 {[%clk 0:01:09]} 22. Bxh6 {[%clk 0:00:11]}  Ne5 {[%clk 0:00:32]} 23. Bg5+ {[%clk 0:00:09]}  Kg8 {[%clk 0:00:33]} 24. Bf6 {[%clk 0:00:08]}  Ng6 {[%clk 0:00:25]} 25. Qh6 {[%clk 0:00:08]} 1-0


[Site "https://www.chess.com"]

[Event "Titled Tuesday Blitz November 07 Early 2023"]
[White "Steinberg, Nitzan"]
[Black "Malek, Jan"]
[WhiteFideId "2801795"]
[BlackFideId "21864080"]
[WhiteElo "2890"]
[BlackElo "2698"]
[Result "1-0"]
[Round "4"]
[TimeControl "180+1"]
[Date "2023.11.07"]
[WhiteClock "0:00:04"]
[BlackClock "0:00:02"]
[Board "20"]

1. Nf3 {[%clk 0:03:00]}  Nf6 {[%clk 0:02:59]} 2. g3 {[%clk 0:03:00]}  d5 {[%clk 0:02:58]} 3. Bg2 {[%clk 0:03:00]}  g6 {[%clk 0:02:58]} 4. O-O {[%clk 0:03:00]}  Bg7 {[%clk 0:02:58]} 5. d3 {[%clk 0:02:59]}  O-O {[%clk 0:02:57]} 6. Nbd2 {[%clk 0:02:59]}  b6 {[%clk 0:02:56]} 7. e4 {[%clk 0:02:57]}  dxe4 {[%clk 0:02:55]} 8. dxe4 {[%clk 0:02:57]}  Bb7 {[%clk 0:02:55]} 9. Qe2 {[%clk 0:02:52]}  e6 {[%clk 0:02:44]} 10. Re1 {[%clk 0:02:35]}  Qe7 {[%clk 0:02:41]} 11. e5 {[%clk 0:02:26]}  Nfd7 {[%clk 0:02:40]} 12. Nf1 {[%clk 0:02:20]}  Nc6 {[%clk 0:02:38]} 13. Bf4 {[%clk 0:02:19]}  h6 {[%clk 0:02:24]} 14. h4 {[%clk 0:02:18]}  Rfd8 {[%clk 0:02:21]} 15. N1h2 {[%clk 0:02:15]}  Nc5 {[%clk 0:01:59]} 16. Ng4 {[%clk 0:02:03]}  Kh7 {[%clk 0:01:57]} 17. Qe3 {[%clk 0:01:11]}  Nb4 {[%clk 0:01:55]} 18. Ng5+ {[%clk 0:01:01]}  hxg5 {[%clk 0:01:24]} 19. Bxg5 {[%clk 0:01:02]}  Qf8 {[%clk 0:01:24]} 20. Bxb7 {[%clk 0:00:50]}  Nxb7 {[%clk 0:01:09]} 21. Qe4 {[%clk 0:00:43]}  Rd5 {[%clk 0:00:55]} 22. h5 {[%clk 0:00:39]}  a5 {[%clk 0:00:25]} 23. hxg6+ {[%clk 0:00:24]}  fxg6 {[%clk 0:00:22]} 24. c4 {[%clk 0:00:12]}  Qf5 {[%clk 0:00:06]} 25. Nf6+ {[%clk 0:00:06]}  Bxf6 {[%clk 0:00:02]} 26. Qh4+ {[%clk 0:00:07]}  Kg8 {[%clk 0:00:03]} 27. Bxf6 {[%clk 0:00:08]}  Qh5 {[%clk 0:00:01]} 28. cxd5 {[%clk 0:00:06]}  Nxd5 {[%clk 0:00:01]} 29. Qxh5 {[%clk 0:00:05]}  gxh5 {[%clk 0:00:02]} 30. Kg2 {[%clk 0:00:05]}  Kf7 {[%clk 0:00:03]} 31. Rh1 {[%clk 0:00:05]}  Kg6 {[%clk 0:00:03]} 32. Rh4 {[%clk 0:00:05]}  Nc5 {[%clk 0:00:03]} 33. Rah1 {[%clk 0:00:05]}  Nxf6 {[%clk 0:00:04]} 34. exf6 {[%clk 0:00:06]}  Nd7 {[%clk 0:00:03]} 35. Rxh5 {[%clk 0:00:06]}  Nxf6 {[%clk 0:00:04]} 36. Rh6+ {[%clk 0:00:06]}  Kg7 {[%clk 0:00:04]} 37. R6h4 {[%clk 0:00:06]}  Rd8 {[%clk 0:00:05]} 38. Re1 {[%clk 0:00:06]}  Kf7 {[%clk 0:00:03]} 39. Re2 {[%clk 0:00:05]}  Rd3 {[%clk 0:00:03]} 40. Rf4 {[%clk 0:00:06]}  c5 {[%clk 0:00:04]} 41. Rf3 {[%clk 0:00:06]}  Rd6 {[%clk 0:00:03]} 42. g4 {[%clk 0:00:06]}  Kg6 {[%clk 0:00:03]} 43. Rfe3 {[%clk 0:00:04]}  Kf7 {[%clk 0:00:02]} 44. g5 {[%clk 0:00:04]}  Nd5 {[%clk 0:00:01]} 45. Re4 {[%clk 0:00:04]}  Rc6 {[%clk 0:00:01]} 46. Kg3 {[%clk 0:00:04]}  c4 {[%clk 0:00:01]} 47. Rh4 {[%clk 0:00:03]}  b5 {[%clk 0:00:01]} 48. Rh7+ {[%clk 0:00:03]}  Kg6 {[%clk 0:00:02]} 49. Rh6+ {[%clk 0:00:04]}  Kf5 {[%clk 0:00:02]} 50. f4 {[%clk 0:00:04]}  b4 {[%clk 0:00:02]} 51. Re5# {[%clk 0:00:04]} 1-0


[Site "https://www.chess.com"]

[Event "Titled Tuesday Blitz November 07 Early 2023"]
[White "Taher, Yoseph Theolifus"]
[Black "amanmuhammethommadov"]
[WhiteFideId "7105347"]
[WhiteElo "2879"]
[BlackElo "2677"]
[Result "1-0"]
[Round "4"]
[TimeControl "180+1"]
[Date "2023.11.07"]
[WhiteClock "0:01:21"]
[BlackClock "0:00:05"]
[Board "22"]

1. d4 {[%clk 0:03:00]}  Nf6 {[%clk 0:03:00]} 2. Nc3 {[%clk 0:03:00]}  d5 {[%clk 0:03:00]} 3. Bf4 {[%clk 0:02:59]}  g6 {[%clk 0:03:00]} 4. e3 {[%clk 0:03:00]}  Bg7 {[%clk 0:03:00]} 5. h4 {[%clk 0:03:00]}  h5 {[%clk 0:03:01]} 6. Nf3 {[%clk 0:03:01]}  O-O {[%clk 0:03:01]} 7. Ne5 {[%clk 0:03:01]}  Bf5 {[%clk 0:03:01]} 8. f3 {[%clk 0:03:00]}  c5 {[%clk 0:03:01]} 9. g4 {[%clk 0:03:00]}  Be6 {[%clk 0:02:57]} 10. Qd2 {[%clk 0:02:52]}  Nc6 {[%clk 0:02:57]} 11. dxc5 {[%clk 0:02:47]}  Qa5 {[%clk 0:02:42]} 12. g5 {[%clk 0:02:45]}  Nd7 {[%clk 0:02:24]} 13. Nxd7 {[%clk 0:02:44]}  Bxd7 {[%clk 0:02:24]} 14. Nxd5 {[%clk 0:02:42]}  Qxc5 {[%clk 0:02:03]} 15. c3 {[%clk 0:02:41]}  Be6 {[%clk 0:02:01]} 16. e4 {[%clk 0:02:41]}  a5 {[%clk 0:01:53]} 17. Be3 {[%clk 0:02:36]}  Qd6 {[%clk 0:01:49]} 18. Nf6+ {[%clk 0:02:35]}  Bxf6 {[%clk 0:01:48]} 19. Qxd6 {[%clk 0:02:28]}  Bxc3+ {[%clk 0:01:45]} 20. bxc3 {[%clk 0:02:29]}  exd6 {[%clk 0:01:45]} 21. a4 {[%clk 0:02:18]}  Ne5 {[%clk 0:01:43]} 22. Be2 {[%clk 0:02:15]}  Rac8 {[%clk 0:01:42]} 23. Bd4 {[%clk 0:02:15]}  Nc6 {[%clk 0:01:39]} 24. Kd2 {[%clk 0:02:13]}  Nxd4 {[%clk 0:01:24]} 25. cxd4 {[%clk 0:02:11]}  d5 {[%clk 0:00:42]} 26. Rhc1 {[%clk 0:02:06]}  Rfd8 {[%clk 0:00:39]} 27. Ke3 {[%clk 0:02:05]}  Kf8 {[%clk 0:00:39]} 28. Rab1 {[%clk 0:02:01]}  Rxc1 {[%clk 0:00:34]} 29. Rxc1 {[%clk 0:02:02]}  Rc8 {[%clk 0:00:35]} 30. Rb1 {[%clk 0:01:32]}  dxe4 {[%clk 0:00:34]} 31. fxe4 {[%clk 0:01:32]}  Rc3+ {[%clk 0:00:35]} 32. Kf4 {[%clk 0:01:30]}  Rh3 {[%clk 0:00:30]} 33. Rxb7 {[%clk 0:01:29]}  Rxh4+ {[%clk 0:00:31]} 34. Ke5 {[%clk 0:01:30]}  Rh2 {[%clk 0:00:30]} 35. Bb5 {[%clk 0:01:29]}  Rf2 {[%clk 0:00:23]} 36. d5 {[%clk 0:01:26]}  Bg4 {[%clk 0:00:23]} 37. d6 {[%clk 0:01:27]}  h4 {[%clk 0:00:19]} 38. Rb8+ {[%clk 0:01:26]}  Kg7 {[%clk 0:00:19]} 39. d7 {[%clk 0:01:27]}  Bxd7 {[%clk 0:00:17]} 40. Bxd7 {[%clk 0:01:28]}  Rg2 {[%clk 0:00:18]} 41. Kf4 {[%clk 0:01:25]}  Rd2 {[%clk 0:00:18]} 42. Rb7 {[%clk 0:01:22]}  Rf2+ {[%clk 0:00:17]} 43. Kg4 {[%clk 0:01:21]}  Re2 {[%clk 0:00:18]} 44. Bc6 {[%clk 0:01:21]}  Kf8 {[%clk 0:00:07]} 45. Bd5 {[%clk 0:01:20]}  Rf2 {[%clk 0:00:05]} 46. Kxh4 {[%clk 0:01:21]} 1-0


[Site "https://www.chess.com"]

[Event "Titled Tuesday Blitz November 07 Early 2023"]
[White "Henriquez Villagra, Cristobal"]
[Black "Matinian, Nikita"]
[WhiteFideId "3409350"]
[BlackFideId "24129100"]
[WhiteElo "2874"]
[BlackElo "2658"]
[Result "1-0"]
[Round "4"]
[TimeControl "180+1"]
[Date "2023.11.07"]
[WhiteClock "0:00:09"]
[BlackClock "0:00:00"]
[Board "23"]

1. d4 {[%clk 0:03:00]}  Nf6 {[%clk 0:02:59]} 2. Nd2 {[%clk 0:03:00]}  d5 {[%clk 0:02:56]} 3. e3 {[%clk 0:03:00]}  g6 {[%clk 0:02:56]} 4. Ngf3 {[%clk 0:02:51]}  Bg7 {[%clk 0:02:56]} 5. b4 {[%clk 0:02:51]}  a5 {[%clk 0:02:56]} 6. b5 {[%clk 0:02:51]}  c5 {[%clk 0:02:56]} 7. bxc6 {[%clk 0:02:51]}  Nxc6 {[%clk 0:02:56]} 8. Bb5 {[%clk 0:02:48]}  O-O {[%clk 0:02:56]} 9. O-O {[%clk 0:02:48]}  Bf5 {[%clk 0:02:57]} 10. Bxc6 {[%clk 0:02:44]}  bxc6 {[%clk 0:02:57]} 11. Ba3 {[%clk 0:02:45]}  Re8 {[%clk 0:02:49]} 12. Ne5 {[%clk 0:02:33]}  Qc7 {[%clk 0:02:47]} 13. Rc1 {[%clk 0:02:31]}  Nd7 {[%clk 0:02:42]} 14. Nxd7 {[%clk 0:02:07]}  Qxd7 {[%clk 0:02:43]} 15. Nf3 {[%clk 0:02:07]}  f6 {[%clk 0:01:59]} 16. c4 {[%clk 0:02:05]}  e5 {[%clk 0:01:59]} 17. cxd5 {[%clk 0:01:40]}  cxd5 {[%clk 0:01:56]} 18. Bc5 {[%clk 0:01:29]}  a4 {[%clk 0:01:45]} 19. h3 {[%clk 0:01:16]}  Be4 {[%clk 0:01:25]} 20. Nd2 {[%clk 0:01:15]}  Bd3 {[%clk 0:01:25]} 21. Re1 {[%clk 0:01:15]}  e4 {[%clk 0:01:23]} 22. Nb1 {[%clk 0:01:03]}  h5 {[%clk 0:01:11]} 23. Nc3 {[%clk 0:01:01]}  f5 {[%clk 0:01:03]} 24. h4 {[%clk 0:00:49]}  Bf6 {[%clk 0:01:02]} 25. g3 {[%clk 0:00:50]}  Qf7 {[%clk 0:00:43]} 26. Ne2 {[%clk 0:00:45]}  g5 {[%clk 0:00:42]} 27. hxg5 {[%clk 0:00:45]}  Bxg5 {[%clk 0:00:43]} 28. Kg2 {[%clk 0:00:43]}  h4 {[%clk 0:00:37]} 29. Rh1 {[%clk 0:00:43]}  Qh5 {[%clk 0:00:25]} 30. Nc3 {[%clk 0:00:32]}  Qxd1 {[%clk 0:00:19]} 31. Rcxd1 {[%clk 0:00:33]}  hxg3 {[%clk 0:00:16]} 32. Rh5 {[%clk 0:00:33]}  Be7 {[%clk 0:00:08]} 33. Nxd5 {[%clk 0:00:32]}  Bxc5 {[%clk 0:00:07]} 34. dxc5 {[%clk 0:00:32]}  Kf7 {[%clk 0:00:06]} 35. Kxg3 {[%clk 0:00:24]}  Be2 {[%clk 0:00:03]} 36. Rxf5+ {[%clk 0:00:17]}  Ke6 {[%clk 0:00:03]} 37. Nf4+ {[%clk 0:00:07]}  Kxf5 {[%clk 0:00:03]} 38. Nxe2 {[%clk 0:00:08]}  Rg8+ {[%clk 0:00:03]} 39. Kh2 {[%clk 0:00:09]}  Kg4 {[%clk 0:00:02]} 40. Kg2 {[%clk 0:00:08]}  Kf5+ {[%clk 0:00:02]} 41. Ng3+ {[%clk 0:00:09]}  Ke5 {[%clk 0:00:02]} 42. Rd4 {[%clk 0:00:09]}  Ra5 {[%clk 0:00:00]} 43. a3 {[%clk 0:00:09]} 1-0


[Site "https://www.chess.com"]

[Event "Titled Tuesday Blitz November 07 Early 2023"]
[White "Andreikin, Dmitry"]
[Black "Skvortsov, Andrei"]
[WhiteFideId "4158814"]
[BlackFideId "24108600"]
[WhiteElo "3110"]
[BlackElo "2663"]
[Result "1-0"]
[Round "4"]
[TimeControl "180+1"]
[Date "2023.11.07"]
[WhiteClock "0:00:45"]
[BlackClock "0:00:17"]
[Board "24"]

1. Nf3 {[%clk 0:02:59]}  e6 {[%clk 0:02:59]} 2. c4 {[%clk 0:02:55]}  d5 {[%clk 0:02:45]} 3. g3 {[%clk 0:02:56]}  dxc4 {[%clk 0:02:43]} 4. Bg2 {[%clk 0:02:56]}  Nd7 {[%clk 0:02:40]} 5. O-O {[%clk 0:02:50]}  Ngf6 {[%clk 0:02:36]} 6. Qc2 {[%clk 0:02:45]}  a6 {[%clk 0:02:35]} 7. Qxc4 {[%clk 0:02:41]}  b5 {[%clk 0:02:35]} 8. Qc6 {[%clk 0:02:40]}  Rb8 {[%clk 0:02:35]} 9. d4 {[%clk 0:02:40]}  Be7 {[%clk 0:02:26]} 10. Bg5 {[%clk 0:02:10]}  Bb7 {[%clk 0:02:24]} 11. Qc2 {[%clk 0:02:10]}  h6 {[%clk 0:02:10]} 12. Bxf6 {[%clk 0:02:10]}  Nxf6 {[%clk 0:02:08]} 13. Ne5 {[%clk 0:02:06]}  Bxg2 {[%clk 0:02:07]} 14. Kxg2 {[%clk 0:02:06]}  Qd5+ {[%clk 0:02:08]} 15. f3 {[%clk 0:01:57]}  c5 {[%clk 0:02:04]} 16. Nc3 {[%clk 0:01:55]}  Qb7 {[%clk 0:02:02]} 17. dxc5 {[%clk 0:01:48]}  Bxc5 {[%clk 0:02:00]} 18. Ne4 {[%clk 0:01:45]}  Be7 {[%clk 0:01:53]} 19. Nc6 {[%clk 0:01:25]}  Rc8 {[%clk 0:01:51]} 20. Rac1 {[%clk 0:01:24]}  Nd5 {[%clk 0:01:46]} 21. Kh3 {[%clk 0:01:00]}  Ne3 {[%clk 0:01:34]} 22. Qc3 {[%clk 0:00:58]}  Nxf1 {[%clk 0:01:34]} 23. Qxg7 {[%clk 0:00:55]}  Rf8 {[%clk 0:01:30]} 24. Nxe7 {[%clk 0:00:52]}  Rxc1 {[%clk 0:00:33]} 25. Ng6 {[%clk 0:00:49]}  Kd8 {[%clk 0:00:19]} 26. Qxf8+ {[%clk 0:00:46]}  Kc7 {[%clk 0:00:17]} 27. Qd6+ {[%clk 0:00:45]} 1-0


[Site "https://www.chess.com"]

[Event "Titled Tuesday Blitz November 07 Early 2023"]
[White "Gharibyan, Mamikon"]
[Black "Deac, Bogdan-Daniel"]
[WhiteFideId "13308300"]
[BlackFideId "1226380"]
[WhiteElo "2765"]
[BlackElo "2998"]
[Result "1-0"]
[Round "4"]
[TimeControl "180+1"]
[Date "2023.11.07"]
[WhiteClock "0:00:21"]
[BlackClock "0:00:00"]
[Board "27"]

1. e4 {[%clk 0:03:00]}  c5 {[%clk 0:02:59]} 2. Nf3 {[%clk 0:03:00]}  e6 {[%clk 0:02:59]} 3. Be2 {[%clk 0:02:56]}  Nc6 {[%clk 0:02:57]} 4. O-O {[%clk 0:02:55]}  Nf6 {[%clk 0:02:57]} 5. Nc3 {[%clk 0:02:55]}  d5 {[%clk 0:02:57]} 6. exd5 {[%clk 0:02:55]}  exd5 {[%clk 0:02:58]} 7. d4 {[%clk 0:02:53]}  Be6 {[%clk 0:02:56]} 8. Re1 {[%clk 0:02:49]}  h6 {[%clk 0:02:44]} 9. Bd3 {[%clk 0:02:22]}  Be7 {[%clk 0:02:15]} 10. dxc5 {[%clk 0:02:19]}  Bxc5 {[%clk 0:01:57]} 11. Bf5 {[%clk 0:02:18]}  O-O {[%clk 0:01:17]} 12. Bxe6 {[%clk 0:02:14]}  fxe6 {[%clk 0:01:18]} 13. Rxe6 {[%clk 0:02:15]}  Qd7 {[%clk 0:01:17]} 14. Re2 {[%clk 0:02:07]}  Rae8 {[%clk 0:01:15]} 15. Bf4 {[%clk 0:01:57]}  Qf5 {[%clk 0:00:56]} 16. Bg3 {[%clk 0:01:52]}  d4 {[%clk 0:00:56]} 17. Rxe8 {[%clk 0:01:42]}  Rxe8 {[%clk 0:00:54]} 18. Ne2 {[%clk 0:01:43]}  Qe4 {[%clk 0:00:16]} 19. Nf4 {[%clk 0:01:36]}  Nb4 {[%clk 0:00:15]} 20. Nd3 {[%clk 0:01:33]}  Nxd3 {[%clk 0:00:14]} 21. Qxd3 {[%clk 0:01:28]}  Qxd3 {[%clk 0:00:09]} 22. cxd3 {[%clk 0:01:29]}  Re2 {[%clk 0:00:09]} 23. Rb1 {[%clk 0:01:29]}  Nd5 {[%clk 0:00:09]} 24. Kf1 {[%clk 0:01:27]}  Rc2 {[%clk 0:00:09]} 25. Be5 {[%clk 0:01:17]}  Bb6 {[%clk 0:00:04]} 26. a3 {[%clk 0:01:13]}  g5 {[%clk 0:00:02]} 27. g3 {[%clk 0:00:58]}  g4 {[%clk 0:00:02]} 28. Nxd4 {[%clk 0:00:53]}  Rd2 {[%clk 0:00:02]} 29. Re1 {[%clk 0:00:26]}  Rxb2 {[%clk 0:00:01]} 30. Re2 {[%clk 0:00:25]}  Rc2 {[%clk 0:00:00]} 31. Rxc2 {[%clk 0:00:21]} 1-0


[Site "https://www.chess.com"]